bitfinex/quotes_SOLUSD_20241107
["timestamp","ask_amount","ask_price","bid_price","bid_amount"]
[1730987702249,31.95310273,186.35,186.3,8.05072873]
[1730987702449,23.902374,186.32,186.26,15.2345]
[1730987702652,0.12549,186.3,186.26,23.28522873]
[1730987703369,0.12549,186.3,186.27,12.57254724]
[1730987703946,0.12549,186.3,186.28,12.57254724]
[1730987704152,25.3642,186.42,186.29,12.57254724]
[1730987704353,23.776884,186.36,186.31,12.57254724]
[1730987704553,0.12549,186.35,186.3,12.57254724]
[1730987704766,12.69803724,186.35,186.3,12.57254724]
[1730987705073,0.12549,186.33,186.29,12.57254724]
[1730987705460,0.12549,186.33,186.26,15.2345]
[1730987705461,0.12549,186.33,186.3,12.57254724]
[1730987708472,0.12549,186.33,186.26,15.2345]
[1730987708678,36.34943124,186.34,186.28,12.57254724]
[1730987708883,0.12549,186.33,186.28,12.57254724]
[1730987709068,0.12549,186.31,186.27,12.57254724]
[1730987709380,12.69803724,186.31,186.26,15.2345]
[1730987709689,0.12549,186.29,186.26,15.2345]
[1730987709978,0.12549,186.27,186.22,28.68534724]
[1730987711067,0.12549,186.27,186.23,12.57254724]
[1730987711592,0.12549,186.27,186.22,16.1128]
[1730987711774,0.12549,186.27,186.24,12.57254724]
[1730987713684,0.12549,186.27,186.23,12.57254724]
[1730987715180,0.12549,186.27,186.24,12.57254724]
[1730987716007,0.12549,186.27,186.23,12.57254724]
[1730987718968,0.12549,186.27,186.24,12.57254724]
[1730987719386,0.12549,186.27,186.23,12.57254724]
[1730987720972,0.12549,186.27,186.22,16.1128]
[1730987720973,0.12549,186.25,186.22,16.1128]
[1730987721394,0.12549,186.25,186.2,18.69224724]
[1730987722888,0.12549,186.25,186.2,12.57254724]
[1730987723099,0.12549,186.25,186.18,15.6056]
[1730987723278,0.12549,186.25,186.22,8.05104005]
[1730987723785,0.12549,186.25,186.21,8.05104005]
[1730987724192,8.05104005,186.31,186.24,8.05104005]
[1730987724391,8.17653005,186.3,186.24,8.05104005]
[1730987724586,8.05104005,186.3,186.24,8.05104005]
[1730987724796,8.05104005,186.29,186.23,8.05104005]
[1730987724986,8.17653005,186.27,186.21,8.05104005]
[1730987725398,0.12549,186.25,186.21,12.57965692]
[1730987725790,0.12549,186.25,186.22,12.57965692]
[1730987726104,23.776884,186.26,186.24,12.57965692]
[1730987726307,12.57965692,186.29,186.24,12.57965692]
[1730987726885,0.12549,186.28,186.24,12.57965692]
[1730987727391,0.12549,186.29,186.24,12.57965692]
[1730987727901,23.902374,186.29,186.24,12.57965692]
[1730987728103,12.57965692,186.31,186.26,12.57965692]
[1730987728307,12.57965692,186.32,186.26,12.57965692]
[1730987728616,12.57965692,186.34,186.28,12.57965692]
[1730987728981,0.12549,186.33,186.28,12.57965692]
[1730987729185,12.70514692,186.33,186.27,12.57965692]
[1730987729687,23.776884,186.32,186.27,12.57965692]
[1730987730198,0.12549,186.31,186.27,12.57965692]
[1730987730707,0.12549,186.31,186.29,12.57965692]
[1730987731078,0.12549,186.31,186.28,12.57965692]
[1730987731909,12.57965692,186.35,186.29,12.57965692]
[1730987732087,0.12549,186.34,186.29,12.57965692]
[1730987732984,0.12549,186.33,186.28,12.57965692]
[1730987733311,23.902374,186.31,186.26,12.57965692]
[1730987733810,23.902374,186.31,186.27,12.57965692]
[1730987734188,23.776884,186.33,186.29,12.57965692]
[1730987734393,23.776884,186.34,186.29,12.57965692]
[1730987734801,0.12549,186.33,186.29,12.57965692]
[1730987735405,0.12549,186.33,186.28,12.57965692]
[1730987736305,12.70514692,186.33,186.27,12.57965692]
[1730987736686,0.12549,186.31,186.28,12.57965692]
[1730987737312,0.12549,186.31,186.29,12.57965692]
[1730987738384,12.57965692,186.37,186.3,12.57965692]
[1730987738587,12.57965692,186.39,186.33,12.57965692]
[1730987738806,12.70514692,186.38,186.32,28.18525692]
[1730987739594,0.12549,186.36,186.32,15.6056]
[1730987740000,12.57965692,186.37,186.32,15.6056]
[1730987740212,0.12549,186.36,186.32,15.6056]
[1730987740808,12.70514692,186.36,186.32,15.6056]
[1730987741012,0.12549,186.35,186.32,15.6056]
[1730987741309,23.902374,186.35,186.32,15.6056]
[1730987743412,23.902374,186.36,186.32,15.6056]
[1730987743996,23.776884,186.37,186.32,28.18525692]
[1730987744498,23.776884,186.37,186.33,12.57965692]
[1730987744697,23.776884,186.39,186.34,12.57965692]
[1730987745014,36.35654092,186.39,186.33,12.57965692]
[1730987745415,0.12549,186.38,186.33,8.04060031]
[1730987746403,8.16609031,186.38,186.33,8.04060031]
[1730987746819,14.30852118,186.45,186.36,8.04060031]
[1730987747012,8.04060031,186.43,186.37,8.04060031]
[1730987747215,0.12549,186.42,186.37,8.04060031]
[1730987748315,0.12549,186.4,186.35,8.04060031]
[1730987748824,0.12549,186.4,186.36,8.04060031]
[1730987749020,0.12549,186.4,186.35,8.04060031]
[1730987749338,0.12549,186.38,186.34,8.04060031]
[1730987749817,0.12549,186.38,186.32,15.6056]
[1730987750026,0.12549,186.38,186.33,8.04060031]
[1730987750214,0.12549,186.36,186.32,15.6056]
[1730987750410,0.12549,186.34,186.3,14.31850031]
[1730987750714,31.94297431,186.34,186.28,24.47290031]
[1730987750916,31.94297431,186.34,186.29,8.04060031]
[1730987751517,36.47204262,186.34,186.29,12.56966862]
[1730987751930,36.47204262,186.34,186.28,29.00196862]
[1730987752721,23.902374,186.32,186.28,16.4323]
[1730987752917,23.902374,186.32,186.28,29.00196862]
[1730987753116,23.902374,186.32,186.29,12.56966862]
[1730987753419,23.902374,186.33,186.29,12.56966862]
[1730987754007,36.47204262,186.33,186.28,16.4323]
[1730987754328,23.902374,186.31,186.28,16.4323]
[1730987754626,36.47204262,186.31,186.28,16.4323]
[1730987755217,23.902374,186.31,186.28,16.4323]
[1730987756328,23.902374,186.32,186.28,29.00196862]
[1730987756628,0.12549,186.32,186.29,12.56966862]
[1730987756807,0.12549,186.32,186.3,12.56966862]
[1730987757008,12.56966862,186.36,186.31,12.56966862]
[1730987757405,0.12549,186.35,186.31,12.56966862]
[1730987757603,0.12549,186.35,186.3,12.56966862]
[1730987758228,0.12549,186.35,186.28,16.4323]
[1730987758229,0.12549,186.34,186.29,12.56966862]
[1730987758712,5.3655,186.38,186.28,16.4323]
[1730987758713,12.56966862,186.38,186.32,12.56966862]
[1730987758917,12.56966862,186.39,186.33,12.56966862]
[1730987759101,0.12549,186.38,186.33,12.56966862]
[1730987759926,12.56966862,186.39,186.33,12.56966862]
[1730987760125,12.56966862,186.4,186.34,12.56966862]
[1730987760334,0.12549,186.39,186.34,12.56966862]
[1730987760720,12.56966862,186.4,186.34,12.56966862]
[1730987761122,12.56966862,186.43,186.37,12.56966862]
[1730987761315,12.56966862,186.42,186.36,12.56966862]
[1730987762432,0.12549,186.39,186.35,16.3013]
[1730987762637,36.47204262,186.39,186.35,16.3013]
[1730987763827,12.69515862,186.39,186.35,16.3013]
[1730987764025,16.9791144,186.46,186.37,12.56966862]
[1730987764026,6.7367144,186.46,186.37,12.56966862]
[1730987764327,0.12549,186.42,186.37,12.56966862]
[1730987764565,0.12549,186.42,186.36,12.56966862]
[1730987764719,12.69515862,186.42,186.36,12.56966862]
[1730987765313,0.12549,186.4,186.36,12.56966862]
[1730987767622,12.56966862,186.43,186.37,12.56966862]
[1730987767816,23.776884,186.42,186.38,12.56966862]
[1730987768226,0.12549,186.41,186.39,12.56966862]
[1730987768815,0.12549,186.42,186.39,12.56966862]
[1730987769621,12.69515862,186.42,186.36,12.56966862]
[1730987769826,36.47204262,186.4,186.35,16.3013]
[1730987770236,23.902374,186.4,186.35,28.87096862]
[1730987770420,36.47204262,186.4,186.35,16.3013]
[1730987770629,23.902374,186.38,186.35,16.3013]
[1730987770939,23.902374,186.38,186.33,12.56966862]
[1730987771237,36.47204262,186.38,186.32,19.02296862]
[1730987772624,0.12549,186.36,186.31,28.12056862]
[1730987772827,36.47204262,186.36,186.31,15.5509]
[1730987773016,23.902374,186.36,186.32,12.56966862]
[1730987773213,23.902374,186.37,186.32,12.56966862]
[1730987773939,0.12549,186.35,186.31,15.5509]
[1730987774129,23.902374,186.35,186.31,15.5509]
[1730987776036,0.12549,186.33,186.28,12.56966862]
[1730987776247,12.69515862,186.33,186.27,18.70716862]
[1730987776619,0.12549,186.31,186.27,18.70716862]
[1730987777334,0.12549,186.31,186.28,12.56966862]
[1730987777520,23.776884,186.32,186.27,6.1375]
[1730987777521,12.56966862,186.36,186.3,12.56966862]
[1730987777726,23.776884,186.35,186.3,12.56966862]
[1730987778119,0.12549,186.34,186.3,12.56966862]
[1730987780021,0.12549,186.34,186.29,12.56966862]
[1730987781326,0.12549,186.34,186.29,8.04415619]
[1730987783735,8.16964619,186.34,186.28,8.04415619]
[1730987783928,0.12549,186.32,186.28,8.04415619]
[1730987784142,0.12549,186.32,186.27,6.1375]
[1730987784143,0.12549,186.32,186.29,8.04415619]
[1730987784342,0.12549,186.32,186.3,8.04415619]
[1730987784932,0.12549,186.32,186.29,8.04415619]
[1730987785632,31.82104019,186.3,186.18,15.8474]
[1730987785830,0.12549,186.32,186.21,8.04415619]
[1730987785831,0.12549,186.25,186.21,8.04415619]
[1730987786032,23.902374,186.25,186.21,8.04415619]
[1730987787237,23.902374,186.25,186.2,8.04415619]
[1730987788052,31.94653019,186.25,186.2,8.04415619]
[1730987789334,23.902374,186.25,186.2,12.58165499]
[1730987790457,23.902374,186.25,186.21,12.58165499]
[1730987795355,23.902374,186.25,186.2,12.58165499]
[1730987795556,36.48402899,186.25,186.2,12.58165499]
[1730987796750,23.902374,186.25,186.21,12.58165499]
[1730987798962,23.902374,186.25,186.2,12.58165499]
[1730987800245,36.48402899,186.25,186.19,12.58165499]
[1730987801065,23.902374,186.25,186.2,12.58165499]
[1730987801254,23.776884,186.27,186.23,12.58165499]
[1730987801449,12.58165499,186.31,186.25,12.58165499]
[1730987801836,0.12549,186.3,186.25,12.58165499]
[1730987802361,12.58165499,186.31,186.25,12.58165499]
[1730987802858,0.12549,186.3,186.25,12.58165499]
[1730987803362,1.32368102,186.35,186.25,12.58165499]
[1730987803363,12.58165499,186.33,186.28,12.58165499]
[1730987803663,0.12549,186.33,186.28,12.58165499]
[1730987804562,23.902374,186.33,186.28,12.58165499]
[1730987804862,12.58165499,186.35,186.29,12.58165499]
[1730987806252,0.12549,186.34,186.29,12.58165499]
[1730987806475,0.12549,186.34,186.3,12.58165499]
[1730987806767,23.902374,186.34,186.3,12.58165499]
[1730987807354,23.902374,186.34,186.29,12.58165499]
[1730987808268,12.58165499,186.38,186.32,12.58165499]
[1730987808458,12.58165499,186.39,186.33,12.58165499]
[1730987808660,12.58165499,186.4,186.34,12.58165499]
[1730987809374,12.58165499,186.41,186.35,12.58165499]
[1730987809668,12.58165499,186.41,186.36,12.58165499]
[1730987809868,0.12549,186.42,186.32,22.5575]
[1730987810075,12.58165499,186.43,186.32,22.5575]
[1730987810251,12.58165499,186.41,186.35,12.58165499]
[1730987811156,36.48402899,186.4,186.34,12.58165499]
[1730987811360,5.3633,186.45,186.32,30.59872121]
[1730987811361,23.902374,186.37,186.32,30.59872121]
[1730987812650,23.776884,186.38,186.33,8.04122121]
[1730987812856,23.902374,186.38,186.33,8.04122121]
[1730987813267,31.94359521,186.38,186.32,30.59872121]
[1730987814869,31.94359521,186.36,186.32,16.0005]
[1730987815372,23.902374,186.34,186.28,24.59512121]
[1730987815573,0.12549,186.32,186.28,16.5539]
[1730987815874,0.12549,186.32,186.28,24.59512121]
[1730987816172,31.81810521,186.34,186.28,24.59512121]
[1730987816364,0.12549,186.33,186.29,8.04122121]
[1730987817671,0.12549,186.33,186.3,8.04122121]
[1730987818053,8.04122121,186.37,186.31,8.04122121]
[1730987818259,23.776884,186.36,186.31,8.04122121]
[1730987818859,0.12549,186.35,186.31,8.04122121]
[1730987820370,0.12549,186.35,186.3,8.04122121]
[1730987822061,8.16671121,186.35,186.29,8.04122121]
[1730987823171,31.94359521,186.32,186.28,16.5539]
[1730987824081,8.04122121,186.3,186.28,16.5539]
[1730987824380,0.12549,186.31,186.28,16.5539]
[1730987824557,8.16671121,186.31,186.28,16.5539]
[1730987825866,8.04122121,186.3,186.28,16.5539]
[1730987826458,0.12549,186.29,186.28,16.5539]
[1730987827677,0.12549,186.28,186.24,15.7204]
[1730987827867,0.12549,186.26,186.24,15.7204]
[1730987828175,8.16671121,186.26,186.24,15.7204]
[1730987828383,0.12549,186.26,186.24,15.7204]
[1730987828676,23.776884,186.33,186.24,23.76162121]
[1730987828857,8.04122121,186.33,186.27,8.04122121]
[1730987829177,0.12549,186.32,186.27,8.04122121]
[1730987829474,32.16488484,186.4,186.28,8.04122121]
[1730987829776,0.12549,186.33,186.28,8.04122121]
[1730987830076,8.16671121,186.33,186.27,8.04122121]
[1730987830267,8.04122121,186.31,186.24,15.7204]
[1730987830456,8.04122121,186.3,186.24,23.76162121]
[1730987830778,0.12549,186.28,186.24,15.7204]
[1730987830966,8.16671121,186.28,186.24,15.7204]
[1730987831356,8.04122121,186.27,186.24,15.7204]
[1730987831578,0.12549,186.26,186.24,15.7204]
[1730987832094,0.12549,186.27,186.24,15.7204]
[1730987832587,8.04122121,186.31,186.25,8.04122121]
[1730987832762,8.04122121,186.33,186.27,8.04122121]
[1730987832971,0.12549,186.32,186.27,8.04122121]
[1730987833582,32.16488484,186.4,186.27,8.14122121]
[1730987833875,8.04122121,186.33,186.27,8.04122121]
[1730987834467,0.12549,186.4,186.28,28.04122121]
[1730987834783,0.12549,186.33,186.28,28.04122121]
[1730987834956,0.12549,186.33,186.29,8.04122121]
[1730987835160,8.16671121,186.34,186.28,8.04122121]
[1730987835357,8.04122121,186.33,186.27,8.04122121]
[1730987835557,0.12549,186.31,186.26,8.04122121]
[1730987835772,0.12549,186.31,186.25,8.04122121]
[1730987836085,8.04122121,186.3,186.24,23.76162121]
[1730987837968,8.04122121,186.3,186.25,8.04122121]
[1730987837969,0.12549,186.3,186.25,8.04122121]
[1730987838478,0.12549,186.3,186.26,8.04122121]
[1730987838677,0.12549,186.31,186.26,8.04122121]
[1730987840587,0.12549,186.32,186.27,8.04122121]
[1730987840878,0.12549,186.32,186.26,8.04122121]
[1730987840879,8.16671121,186.32,186.26,8.04122121]
[1730987841668,0.12549,186.3,186.24,23.76162121]
[1730987842075,0.12549,186.3,186.25,8.04122121]
[1730987842986,0.12549,186.31,186.25,8.04122121]
[1730987843561,0.12549,186.3,186.25,8.04122121]
[1730987844686,0.12549,186.29,186.24,15.7204]
[1730987844887,8.16671121,186.29,186.24,15.7204]
[1730987845482,0.12549,186.27,186.24,15.7204]
[1730987846359,0.12549,186.26,186.24,15.7204]
[1730987847383,8.04122121,186.28,186.24,15.7204]
[1730987847590,0.12549,186.27,186.24,15.7204]
[1730987848267,23.902374,186.28,186.24,15.7204]
[1730987848581,0.12549,186.28,186.24,15.7204]
[1730987848787,23.776884,186.29,186.24,23.76162121]
[1730987849287,0.12549,186.28,186.24,23.76162121]
[1730987850260,20.40743663,186.42,186.25,8.04122121]
[1730987850480,8.04122121,186.33,186.27,8.04122121]
[1730987850683,0.12549,186.32,186.27,8.04122121]
[1730987850888,8.16671121,186.32,186.26,8.04122121]
[1730987851383,8.16671121,186.32,186.25,8.04122121]
[1730987854988,8.16671121,186.3,186.24,15.7204]
[1730987855180,0.12549,186.27,186.24,15.7204]
[1730987855887,0.12549,186.28,186.24,15.7204]
[1730987857769,31.94359521,186.28,186.24,15.7204]
[1730987858391,0.12549,186.24,186.19,22.7462]
[1730987858590,0.12549,186.24,186.19,30.78742121]
[1730987858797,0.12549,186.24,186.21,8.04122121]
[1730987858998,31.94359521,186.26,186.21,8.04122121]
[1730987859181,8.16671121,186.26,186.21,8.04122121]
[1730987859871,8.16671121,186.26,186.19,30.78742121]
[1730987860076,8.16671121,186.24,186.19,22.7462]
[1730987860275,0.12549,186.24,186.19,30.78742121]
[1730987860672,0.12549,186.24,186.19,22.7462]
[1730987860872,8.16671121,186.23,186.17,8.04122121]
[1730987861301,8.04122121,186.22,186.17,8.04122121]
[1730987862192,8.04122121,186.23,186.15,16.4106274]
[1730987862396,0.12549,186.22,186.17,8.04122121]
[1730987862598,8.16671121,186.22,186.16,8.04122121]
[1730987862898,0.12549,186.2,186.16,8.04122121]
[1730987863470,0.12549,186.2,186.15,16.4106274]
[1730987863680,0.12549,186.2,186.16,8.04122121]
[1730987866988,0.12549,186.2,186.15,24.45184861]
[1730987867178,0.12549,186.2,186.16,8.04122121]
[1730987875383,23.902374,186.2,186.15,0.5715274]
[1730987875590,31.94359521,186.2,186.15,0.5715274]
[1730987875792,31.94359521,186.2,186.15,8.61274861]
[1730987876813,26.25395415,186.19,186.15,8.61274861]
[1730987877130,31.81810521,186.2,186.15,8.61274861]
[1730987877412,0.12549,186.19,186.15,8.61274861]
[1730987879793,27.602321,186.27,186.16,8.04122121]
[1730987879999,8.04122121,186.22,186.17,8.04122121]
[1730987880684,0.12549,186.21,186.17,8.04122121]
[1730987881312,23.902374,186.21,186.17,8.04122121]
[1730987882217,0.12549,186.19,186.15,8.61274861]
[1730987882505,23.902374,186.19,186.15,8.61274861]
[1730987882900,23.902374,186.2,186.15,8.61274861]
[1730987883102,23.902374,186.2,186.17,8.04122121]
[1730987883303,0.12549,186.2,186.16,8.04122121]
[1730987884094,0.12549,186.2,186.15,0.5715274]
[1730987884095,8.16671121,186.2,186.15,0.5715274]
[1730987884603,0.12549,186.18,186.15,0.5715274]
[1730987885892,0.12549,186.16,186.15,0.5715274]
[1730987887998,31.94359521,186.16,186.15,0.5715274]
[1730987888408,23.902374,186.16,186.15,0.5715274]
[1730987893417,23.776884,186.19,186.15,8.61274861]
[1730987893622,0.12549,186.18,186.15,0.5715274]
[1730987894630,23.776884,186.19,186.15,0.5715274]
[1730987894631,31.81810521,186.17,186.15,0.5715274]
[1730987894814,31.94359521,186.16,186.15,0.5715274]
[1730987896999,23.902374,186.16,186.15,0.5715274]
[1730987897407,31.94359521,186.16,186.15,0.5715274]
[1730987898024,23.902374,186.16,186.15,0.5715274]
[1730987901423,31.94359521,186.16,186.15,0.5715274]
[1730987901629,23.902374,186.16,186.15,0.5715274]
[1730987902005,31.94359521,186.16,186.15,0.5715274]
[1730987910821,23.902374,186.16,186.15,0.5715274]
[1730987911025,31.94359521,186.16,186.15,0.5715274]
[1730987911816,32.16488484,186.2,186.15,0.5715274]
[1730987912019,8.04122121,186.16,186.15,0.5715274]
[1730987912408,8.16671121,186.16,186.15,0.5715274]
[1730987913017,31.94359521,186.16,186.15,0.5715274]
[1730987914010,23.902374,186.16,186.15,0.5715274]
[1730987914217,31.94359521,186.16,186.15,0.5715274]
[1730987920115,23.902374,186.16,186.15,0.5715274]
[1730987920316,31.94359521,186.16,186.15,0.5715274]
[1730987920638,23.902374,186.16,186.15,0.5715274]
[1730987920930,23.776884,186.16,186.15,0.5715274]
[1730987921135,31.81810521,186.16,186.15,0.5715274]
[1730987921434,31.94359521,186.16,186.15,0.5715274]
[1730987921834,23.902374,186.16,186.15,0.5715274]
[1730987922149,31.94359521,186.16,186.15,0.5715274]
[1730987923847,23.902374,186.16,186.15,0.5715274]
[1730987924143,31.94359521,186.16,186.15,0.5715274]
[1730987927434,37.31529521,186.16,186.15,0.5715274]
[1730987932731,17.29002921,186.16,186.15,0.5715274]
[1730987933225,13.53841121,186.16,186.15,0.5715274]
[1730987934521,8.16671121,186.16,186.15,0.5715274]
[1730987934732,20.0,186.19,186.15,0.5715274]
[1730987934927,8.04122121,186.16,186.15,0.5715274]
[1730987935132,8.16671121,186.16,186.15,0.5715274]
[1730987936149,5.3697,186.23,186.15,0.5715274]
[1730987936323,8.04122121,186.18,186.15,0.5715274]
[1730987936525,0.12549,186.17,186.15,0.5715274]
[1730987936842,8.16671121,186.16,186.15,0.5715274]
[1730987940923,8.04122121,186.16,186.15,0.5715274]
[1730987941638,8.16671121,186.16,186.15,0.5715274]
[1730987949432,0.12549,186.16,186.15,0.5715274]
[1730987949633,8.16671121,186.16,186.15,0.5715274]
[1730987951529,8.16671121,186.16,186.03,21.4157381]
[1730987951530,43.776884,186.15,186.03,21.4157381]
[1730987951742,8.04122121,186.1,186.03,23.93082121]
[1730987951923,0.12549,186.08,186.03,23.93082121]
[1730987952256,0.12549,186.08,186.03,15.8896]
[1730987952439,0.12549,186.08,186.03,23.93082121]
[1730987953354,0.12549,186.08,186.03,15.8896]
[1730987953553,0.12549,186.07,186.03,15.8896]
[1730987954048,0.12549,186.09,186.03,15.8896]
[1730987954351,45.13729635,186.15,186.03,15.8896]
[1730987954352,8.04122121,186.08,186.03,15.8896]
[1730987954525,0.12549,186.07,186.03,15.8896]
[1730987954958,0.12549,186.07,186.03,23.93082121]
[1730987955146,5.3723,186.14,186.04,8.04122121]
[1730987955334,50.50929635,186.15,186.05,8.04122121]
[1730987955543,0.12549,186.1,186.05,8.04122121]
[1730987955739,23.776884,186.15,186.07,8.04122121]
[1730987955938,8.04122121,186.13,186.08,22.8224]
[1730987956350,8.16671121,186.12,186.08,22.8224]
[1730987957937,0.12549,186.12,186.08,30.86362121]
[1730987958142,8.16671121,186.12,186.08,22.8224]
[1730987959336,0.12549,186.17,186.08,22.8224]
[1730987959539,8.16671121,186.11,186.08,22.8224]
[1730987960659,0.12549,186.11,186.08,22.8224]
[1730987961533,8.04122121,186.13,186.08,22.8224]
[1730987961534,0.12549,186.12,186.08,22.8224]
[1730987963156,23.776884,186.17,186.08,30.86362121]
[1730987963455,8.04122121,186.14,186.08,30.86362121]
[1730987963758,0.12549,186.13,186.08,30.86362121]
[1730987966053,8.04122121,186.15,186.1,8.04122121]
[1730987966253,23.902374,186.19,186.1,8.04122121]
[1730987966466,0.12549,186.14,186.1,8.04122121]
[1730987966958,0.12549,186.13,186.08,30.86362121]
[1730987967260,8.16671121,186.13,186.08,30.86362121]
[1730987967639,8.16671121,186.13,186.08,22.8224]
[1730987967841,8.04122121,186.14,186.08,30.86362121]
[1730987968252,0.12549,186.13,186.08,30.86362121]
[1730987970154,8.16671121,186.13,186.08,22.8224]
[1730987970368,0.12549,186.12,186.08,22.8224]
[1730987970858,0.12549,186.11,186.08,22.8224]
[1730987971284,8.04122121,186.13,186.08,22.8224]
[1730987971563,0.12549,186.12,186.08,22.8224]
[1730987972150,8.04122121,186.13,186.08,30.86362121]
[1730987972151,0.12549,186.13,186.08,30.86362121]
[1730987972763,0.12549,186.12,186.08,22.8224]
[1730987974261,0.12549,186.12,186.08,30.86362121]
[1730987974564,8.04122121,186.15,186.08,30.86362121]
[1730987975367,0.12549,186.14,186.08,30.86362121]
[1730987977140,0.12549,186.13,186.08,22.8224]
[1730987977461,0.12549,186.13,186.08,30.86362121]
[1730987978844,12.49741996,186.22,186.11,8.04122121]
[1730987979062,8.04122121,186.18,186.11,8.04122121]
[1730987979361,8.16671121,186.17,186.11,8.04122121]
[1730987983369,0.12549,186.21,186.14,16.3471]
[1730987983552,8.04122121,186.18,186.14,16.3471]
[1730987983753,0.12549,186.17,186.14,16.3471]
[1730987987564,8.04122121,186.19,186.14,16.3471]
[1730987987764,0.12549,186.17,186.14,16.3471]
[1730987988773,0.12549,186.16,186.14,16.3471]
[1730987989350,8.04122121,186.18,186.14,16.3471]
[1730987989351,0.12549,186.17,186.14,16.3471]
[1730987992347,8.04122121,186.18,186.14,16.3471]
[1730987992678,0.12549,186.17,186.14,16.3471]
[1730987993266,8.16671121,186.17,186.14,16.3471]
[1730987993961,43.776884,186.23,186.14,16.3471]
[1730987993962,49.146584,186.23,186.14,16.3471]
[1730987994161,8.04122121,186.18,186.14,16.3471]
[1730987994363,0.12549,186.17,186.14,16.3471]
[1730987998578,8.16671121,186.16,186.14,16.3471]
[1730987998877,0.12549,186.16,186.14,16.3471]
[1730988002264,178.4,186.23,186.14,24.38832121]
[1730988002469,1.33238112,186.24,186.15,8.04122121]
[1730988002470,8.04122121,186.2,186.15,8.04122121]
[1730988003281,165.52741996,186.27,186.17,8.04122121]
[1730988003282,8.04122121,186.23,186.17,8.04122121]
[1730988003459,7.12741996,186.27,186.17,8.04122121]
[1730988003460,8.04122121,186.22,186.17,8.04122121]
[1730988003775,8.04122121,186.21,186.16,8.04122121]
[1730988004165,8.04122121,186.22,186.16,8.04122121]
[1730988004669,8.04122121,186.2,186.14,30.50592121]
[1730988004869,8.04122121,186.2,186.15,8.04122121]
[1730988005385,8.16671121,186.18,186.14,22.4647]
[1730988005675,8.04122121,186.17,186.14,22.4647]
[1730988005885,8.16671121,186.18,186.09,15.2831]
[1730988006078,8.16671121,186.18,186.12,8.04122121]
[1730988006676,8.16671121,186.18,186.09,15.2831]
[1730988006867,8.16671121,186.18,186.12,8.04122121]
[1730988007067,8.04122121,186.19,186.14,8.04122121]
[1730988007365,8.04122121,186.21,186.16,15.5355]
[1730988007966,0.12549,186.2,186.16,15.5355]
[1730988008162,8.04122121,186.22,186.16,23.57672121]
[1730988008384,7.12741996,186.27,186.16,23.57672121]
[1730988008605,3.94498489,186.26,186.21,8.04122121]
[1730988008879,8.04122121,186.27,186.22,23.28852121]
[1730988009180,8.04122121,186.27,186.22,15.2473]
[1730988009668,8.04122121,186.24,186.22,15.2473]
[1730988009874,8.16671121,186.24,186.22,15.2473]
[1730988010168,0.12549,186.22,186.18,6.2904]
[1730988010567,8.16671121,186.22,186.17,15.0376]
[1730988011384,0.12549,186.2,186.17,15.0376]
[1730988011581,8.04122121,186.21,186.17,15.0376]
[1730988011582,32.16488484,186.3,186.18,8.04122121]
[1730988011881,32.16488484,186.3,186.17,15.0376]
[1730988011882,8.04122121,186.26,186.2,8.04122121]
[1730988012085,11.03534959,186.37,186.25,8.04122121]
[1730988012382,11.03534959,186.37,186.22,15.0984]
[1730988012383,8.04122121,186.29,186.22,15.0984]
[1730988012583,8.04122121,186.27,186.22,15.0984]
[1730988012786,0.12549,186.26,186.22,15.0984]
[1730988012971,8.04122121,186.26,186.22,15.0984]
[1730988013173,8.04122121,186.25,186.22,15.0984]
[1730988013385,8.16671121,186.24,186.22,15.0984]
[1730988013687,8.16671121,186.24,186.19,6.4221]
[1730988014387,20.0,186.29,186.19,14.46332121]
[1730988014578,8.04122121,186.25,186.19,14.46332121]
[1730988014775,0.12549,186.24,186.19,14.46332121]
[1730988015891,8.04122121,186.26,186.2,8.04122121]
[1730988016080,8.04122121,186.27,186.21,8.04122121]
[1730988016275,8.04122121,186.26,186.2,8.04122121]
[1730988016872,0.12549,186.25,186.2,8.04122121]
[1730988017083,8.16671121,186.25,186.19,14.46332121]
[1730988017277,0.12549,186.25,186.2,8.04122121]
[1730988018177,0.12549,186.24,186.19,14.46332121]
[1730988018573,0.12549,186.24,186.2,8.04122121]
[1730988018794,0.12549,186.25,186.2,8.04122121]
[1730988019174,0.12549,186.25,186.19,6.4221]
[1730988019175,8.16671121,186.25,186.19,14.46332121]
[1730988019795,8.04122121,186.22,186.18,16.2328]
[1730988020106,8.04122121,186.2,186.18,16.2328]
[1730988020806,0.12549,186.18,186.14,6.4464]